fUST/lending_fUST_20241002
["ID","MTS","AMOUNT","RATE_DAILY","PERIOD"]
[339693599,1727869867215,-849.35,0.00013972,2]
[339693601,1727869867225,-500.0,0.00013972,2]
[339693603,1727869867235,-500.0,0.00013972,2]
[339693605,1727869867245,-590.28,0.00013972,2]
[339693607,1727869867255,-575.03096317,0.00013972,2]
[339693609,1727869867265,-500.0,0.00013972,2]
[339693611,1727869867275,-846.71,0.00013972,2]
[339693613,1727869867287,-500.0,0.00013972,2]
[339693615,1727869867297,-501.01651255,0.00013972,2]
[339693617,1727869867307,-961.77,0.00013972,2]
[339693619,1727869867317,-542.41,0.00013972,2]
[339693621,1727869867326,-500.0,0.00013972,2]
[339693623,1727869867337,-500.0,0.00013972,2]
[339693626,1727869867347,-500.0,0.00013972,2]
[339693628,1727869867358,-500.0,0.00013972,2]
[339693644,1727869867509,-500.0,0.00013972,2]
[339693646,1727869867520,-500.0,0.00013972,2]
[339693648,1727869867530,-505.56957573,0.00013972,2]
[339693650,1727869867542,-500.0,0.00013972,2]
[339693653,1727869867553,-500.0,0.00013972,2]
[339693655,1727869867564,-500.0,0.00013972,2]
[339693657,1727869867575,-500.0,0.00013972,2]
[339693659,1727869867586,-500.0,0.00013972,2]
[339693661,1727869867596,-722.48,0.00013972,2]
[339693663,1727869867607,-500.0,0.00013972,2]
[339693666,1727869867619,-500.0,0.00013972,2]
[339693668,1727869867629,-254.94009125,0.00013972,2]
[339693670,1727869867640,-500.0,0.00013972,2]
[339693672,1727869867651,-1598.7,0.00013972,2]
[339693674,1727869867662,-500.0,0.00013972,2]
[339693676,1727869867672,-1340.14,0.00013972,2]
[339693679,1727869867684,-500.0,0.00013972,2]
[339693681,1727869867696,-500.0,0.00013972,2]
[339693683,1727869867706,-500.0,0.00013972,2]
[339693685,1727869867718,-500.0,0.00013972,2]
[339693687,1727869867729,-500.0,0.00013972,2]
[339693689,1727869867740,-500.0,0.00013972,2]
[339693692,1727869867751,-500.0,0.00013972,2]
[339693694,1727869867762,-589.62,0.00013972,2]
[339693696,1727869867773,-500.0,0.00013972,2]
[339693698,1727869867784,-500.0,0.00013972,2]
[339693700,1727869867794,-500.0,0.00013972,2]
[339693703,1727869867806,-500.0,0.00013972,2]
[339693705,1727869867817,-500.0,0.00013972,2]
[339693707,1727869867827,-500.0,0.00013972,2]
[339693709,1727869867838,-500.0,0.00013972,2]
[339693711,1727869867849,-1108.78,0.00013972,2]
[339693714,1727869867860,-500.0,0.00013972,2]
[339693716,1727869867870,-500.0,0.00013972,2]
[339693718,1727869867880,-500.0,0.00013972,2]
[339693720,1727869867889,-500.0,0.00013972,2]
[339693722,1727869867899,-500.0,0.00013972,2]
[339693724,1727869867910,-500.0,0.00013972,2]
[339693726,1727869867923,-500.0,0.00013972,2]
[339693728,1727869867934,-500.0,0.00013972,2]
[339693730,1727869867945,-500.0,0.00013972,2]
[339693733,1727869867956,-474.11371585,0.00013972,2]
[339693774,1727869868350,-67.40628415,0.00013972,2]
[339693776,1727869868360,-963.33,0.00013972,2]
[339693778,1727869868370,-500.0,0.00013972,2]
[339693780,1727869868380,-500.0,0.00013972,2]
[339693782,1727869868390,-150.0,0.00013972,2]
[339693784,1727869868400,-506.58,0.00013972,2]
[339693786,1727869868410,-500.0,0.00013972,2]
[339693788,1727869868419,-500.0,0.00013972,2]
[339693790,1727869868431,-1029.5,0.00013972,2]
[339693792,1727869868442,-4518.22,0.00013972,2]
[339693794,1727869868452,-500.0,0.00013972,2]
[339693797,1727869868464,-500.0,0.00013972,2]
[339693799,1727869868475,-500.0,0.00013972,2]
[339693801,1727869868486,-500.0,0.00013972,2]
[339693803,1727869868496,-355.00887291,0.00013972,2]
[339693805,1727869868507,-500.0,0.00013972,2]
[339693807,1727869868517,-500.0,0.00013972,2]
[339693809,1727869868528,-500.0,0.00013972,2]
[339693811,1727869868538,-500.0,0.00013972,2]
[339693813,1727869868549,-160.98857582,0.00013972,2]
[339693815,1727869868559,-707.63,0.00013972,2]
[339693817,1727869868569,-1280.04,0.00013972,2]
[339693819,1727869868580,-500.0,0.00013972,2]
[339693821,1727869868590,-1028.61,0.00013972,2]
[339693823,1727869868600,-500.0,0.00013972,2]
[339693825,1727869868610,-788.89,0.00013972,2]
[339693827,1727869868622,-500.0,0.00013972,2]
[339693829,1727869868632,-500.0,0.00013972,2]
[339693831,1727869868642,-500.0,0.00013972,2]
[339693833,1727869868653,-500.0,0.00013972,2]
[339693835,1727869868664,-500.0,0.00013972,2]
[339693837,1727869868674,-500.0,0.00013972,2]
[339693839,1727869868685,-500.0,0.00013972,2]
[339693841,1727869868696,-500.0,0.00013972,2]
[339693843,1727869868706,-305.08222575,0.00013972,2]
[339693845,1727869868717,-565.64,0.00013972,2]
[339693847,1727869868729,-500.0,0.00013972,2]
[339693849,1727869868740,-1178.02,0.00013972,2]
[339693851,1727869868750,-500.0,0.00013972,2]
[339693853,1727869868760,-500.0,0.00013972,2]
[339693855,1727869868770,-557.99,0.00013972,2]
[339693857,1727869868780,-2447.99,0.00013972,2]
[339693859,1727869868790,-500.0,0.00013972,2]
[339693862,1727869868800,-1035.29,0.00013972,2]
[339693864,1727869868809,-387.3232113,0.00013972,2]
[339693866,1727869868819,-645.16,0.00013972,2]
[339693867,1727869868829,-500.0,0.00013972,2]
[339693869,1727869868839,-500.0,0.00013972,2]
[339693871,1727869868849,-500.0,0.00013972,2]
[339693874,1727869868858,-303.40070769,0.00013972,2]
[339697042,1727870745420,-839.83653,0.00013598,2]
[339697043,1727870745443,-300.0,0.00013672,2]
[339697044,1727870745465,-300.0,0.00013672,2]
[339697045,1727870745486,-500.0,0.00013673,2]
[339697046,1727870745507,-500.0,0.00013673,2]
[339697047,1727870745528,-332.06413842,0.00013673,2]
[339697048,1727870745549,-500.0,0.00013673,2]
[339697049,1727870745570,-500.08995096,0.00013673,2]
[339697050,1727870745592,-500.0,0.00013673,2]
[339697051,1727870745613,-500.34128355,0.00013673,2]
[339697052,1727870745635,-500.0,0.00013673,2]
[339697053,1727870745656,-501.17497356,0.00013673,2]
[339697054,1727870745679,-2637.77249288,0.00013678,2]
[339697055,1727870745703,-174.647,0.00013688,2]
[339697056,1727870745725,-4145.07106024,0.00013688,2]
[339697057,1727870745747,-169.80942206,0.00013698,2]
[339697058,1727870745769,-761.73,0.00013698,2]
[339697059,1727870745792,-500.0,0.00013698,2]
[339697060,1727870745814,-500.0,0.00013698,2]
[339697061,1727870745834,-500.0,0.00013698,2]
[339697062,1727870745856,-500.0,0.00013698,2]
[339697063,1727870745877,-500.0,0.00013698,2]
[339697064,1727870745898,-500.0,0.00013698,2]
[339697065,1727870745920,-316.48965692,0.00013698,2]
[339697066,1727870745942,-500.0,0.00013698,2]
[339697067,1727870745965,-818.52,0.00013698,2]
[339697068,1727870745986,-500.0,0.00013698,2]
[339697069,1727870746007,-276.2283048,0.00013698,2]
[339697070,1727870746030,-212.55801844,0.00013698,2]
[339697071,1727870746052,-500.0,0.00013698,2]
[339697072,1727870746074,-254.0693271,0.00013698,2]
[339697073,1727870746096,-500.0,0.00013698,2]
[339697074,1727870746119,-500.0,0.00013698,2]
[339697075,1727870746140,-500.0,0.00013698,2]
[339697076,1727870746162,-511.54,0.00013698,2]
[339697077,1727870746187,-500.0,0.00013698,2]
[339697078,1727870746211,-500.0,0.00013698,2]
[339697079,1727870746237,-500.0,0.00013698,2]
[339697080,1727870746376,-500.0,0.00013698,2]
[339697081,1727870746423,-643.01,0.00013698,2]
[339697082,1727870746445,-500.0,0.00013698,2]
[339697083,1727870746468,-500.0,0.00013698,2]
[339697084,1727870746490,-500.0,0.00013698,2]
[339697085,1727870746511,-500.0,0.00013698,2]
[339697086,1727870746531,-1013.48,0.00013698,2]
[339697087,1727870746552,-500.0,0.00013698,2]
[339697088,1727870746573,-631.07,0.00013698,2]
[339697089,1727870746594,-500.0,0.00013698,2]
[339697090,1727870746615,-500.0,0.00013698,2]
[339697091,1727870746637,-500.0,0.00013698,2]
[339697092,1727870746658,-500.0,0.00013698,2]
[339697093,1727870746679,-500.0,0.00013698,2]
[339697094,1727870746700,-500.0,0.00013698,2]
[339697095,1727870746722,-500.0,0.00013698,2]
[339697096,1727870746745,-500.0,0.00013698,2]
[339697097,1727870746767,-500.0,0.00013698,2]
[339697098,1727870746788,-500.0,0.00013698,2]
[339697099,1727870746810,-500.0,0.00013698,2]
[339697100,1727870746832,-512.74600912,0.00013698,2]
[339697101,1727870746853,-557.02,0.00013698,2]
[339697102,1727870746874,-509.49849423,0.00013698,2]
[339697103,1727870746896,-537.92976224,0.00013698,2]
[339697104,1727870746920,-500.0,0.00013698,2]
[339697105,1727870746941,-500.0,0.00013698,2]
[339697106,1727870746963,-500.0,0.00013698,2]
[339697107,1727870746984,-500.0,0.00013698,2]
[339697108,1727870747006,-500.0,0.00013698,2]
[339697109,1727870747027,-541.91,0.00013698,2]
[339697110,1727870747048,-500.0,0.00013698,2]
[339697111,1727870747068,-500.0,0.00013698,2]
[339697112,1727870747088,-670.69,0.00013698,2]
[339697113,1727870747109,-704.15,0.00013698,2]
[339697114,1727870747129,-500.0,0.00013698,2]
[339697115,1727870747148,-500.0,0.00013698,2]
[339697116,1727870747169,-500.0,0.00013698,2]
[339697117,1727870747189,-500.0,0.00013698,2]
[339697118,1727870747217,-500.0,0.00013698,2]
[339697119,1727870747237,-500.0,0.00013698,2]
[339697120,1727870747259,-500.0,0.00013698,2]
[339697121,1727870747298,-500.0,0.00013698,2]
[339697122,1727870747338,-500.0,0.00013698,2]
[339697123,1727870747383,-500.0,0.00013698,2]
[339697124,1727870747423,-555.26,0.00013698,2]
[339697125,1727870747464,-500.0,0.00013698,2]
[339697126,1727870747505,-500.0,0.00013698,2]
[339697127,1727870747541,-500.0,0.00013698,2]
[339697128,1727870747579,-500.0,0.00013698,2]
[339697129,1727870747613,-500.0,0.00013698,2]
[339697130,1727870747654,-500.0,0.00013698,2]
[339697131,1727870747688,-500.0,0.00013698,2]
[339697132,1727870747724,-500.0,0.00013698,2]
[339697133,1727870747757,-561.36,0.00013698,2]
[339697134,1727870747790,-500.0,0.00013698,2]
[339697135,1727870747822,-500.0,0.00013698,2]
[339697136,1727870747856,-500.0,0.00013698,2]
[339697137,1727870747891,-549.39216059,0.00013698,2]
[339697138,1727870747925,-668.51,0.00013698,2]
[339697139,1727870747966,-500.0,0.00013698,2]
[339697140,1727870747997,-500.0,0.00013698,2]
[339697141,1727870748032,-500.0,0.00013698,2]
[339697142,1727870748067,-500.0,0.00013698,2]
[339697143,1727870748100,-500.0,0.00013698,2]
[339697144,1727870748134,-553.36,0.00013698,2]
[339697145,1727870748170,-500.0,0.00013698,2]
[339697146,1727870748207,-500.0,0.00013698,2]
[339697147,1727870748244,-500.0,0.00013698,2]
[339697148,1727870748282,-907.48,0.00013698,2]
[339697149,1727870748318,-500.0,0.00013698,2]
[339697150,1727870748353,-500.0,0.00013698,2]
[339697151,1727870748388,-544.1,0.00013698,2]
[339697152,1727870748421,-509.42421557,0.00013698,2]
[339697153,1727870748460,-500.0,0.00013698,2]
[339697154,1727870748494,-500.0,0.00013698,2]
[339697155,1727870748529,-500.0,0.00013698,2]
[339697156,1727870748566,-500.0,0.00013698,2]
[339697157,1727870748601,-623.98,0.00013698,2]
[339697158,1727870748635,-514.98117344,0.00013698,2]
[339697159,1727870748658,-500.0,0.00013698,2]
[339697160,1727870748680,-500.0,0.00013698,2]
[339697161,1727870748703,-500.0,0.00013698,2]
[339697162,1727870749033,-756.56,0.00013698,2]
[339697163,1727870749056,-500.0,0.00013698,2]
[339697164,1727870749078,-625.61,0.00013698,2]
[339697165,1727870749100,-500.0,0.00013698,2]
[339697166,1727870749123,-500.0,0.00013698,2]
[339697167,1727870749145,-500.0,0.00013698,2]
[339697168,1727870749168,-500.0,0.00013698,2]
[339697169,1727870749189,-500.0,0.00013698,2]
[339697170,1727870749213,-500.0,0.00013698,2]
[339697171,1727870749237,-500.0,0.00013698,2]
[339697172,1727870749260,-535.07421613,0.00013698,2]
[339697173,1727870749283,-500.0,0.00013698,2]
[339697174,1727870749309,-500.0,0.00013698,2]
[339697175,1727870749331,-500.0,0.00013698,2]
[339697176,1727870749352,-500.0,0.00013698,2]
[339697177,1727870749373,-500.0,0.00013698,2]
[339697178,1727870749396,-500.0,0.00013698,2]
[339697179,1727870749417,-500.0,0.00013698,2]
[339697180,1727870749439,-500.0,0.00013698,2]
[339697181,1727870749463,-500.0,0.00013698,2]
[339697182,1727870749483,-735.75,0.00013698,2]
[339697183,1727870749503,-500.0,0.00013698,2]
[339697184,1727870749525,-500.0,0.00013698,2]
[339697185,1727870749545,-603.89825986,0.00013698,2]
[339697186,1727870749566,-500.0,0.00013698,2]
[339697187,1727870749587,-500.0,0.00013698,2]
[339697188,1727870749608,-903.14,0.00013698,2]
[339697189,1727870749631,-500.0,0.00013698,2]
[339697190,1727870749652,-500.0,0.00013698,2]
[339697191,1727870749672,-2569.5,0.00013698,2]
[339697192,1727870749694,-500.0,0.00013698,2]
[339697193,1727870749716,-500.0,0.00013698,2]
[339697194,1727870749738,-500.0,0.00013698,2]
[339697195,1727870749759,-500.0,0.00013698,2]
[339697196,1727870749779,-500.0,0.00013698,2]
[339697197,1727870749801,-500.0,0.00013698,2]
[339697198,1727870749822,-500.0,0.00013698,2]
[339697199,1727870749843,-500.0,0.00013698,2]
[339697200,1727870749863,-500.0,0.00013698,2]
[339697201,1727870749884,-500.0,0.00013698,2]
[339697202,1727870749907,-500.0,0.00013698,2]
[339697203,1727870749927,-500.0,0.00013698,2]
[339697204,1727870749948,-204.74271902,0.00013698,2]
[339697205,1727870749971,-500.0,0.00013698,2]
[339697206,1727870749993,-995.85,0.00013698,2]
[339697207,1727870750014,-597.89916767,0.00013698,2]
[339697208,1727870750036,-500.0,0.00013698,2]
[339697209,1727870750057,-500.0,0.00013698,2]
[339697210,1727870750080,-500.0,0.00013698,2]
[339697211,1727870750100,-500.0,0.00013698,2]
[339697212,1727870750121,-500.0,0.00013698,2]
[339697213,1727870750142,-500.0,0.00013698,2]
[339697214,1727870750163,-877.67,0.00013698,2]
[339697215,1727870750183,-1770.89,0.00013698,2]
[339697216,1727870750204,-365.73221099,0.00013698,2]
[339697217,1727870750230,-500.0,0.00013698,2]
[339697218,1727870750251,-169.48042502,0.00013698,2]
[339697219,1727870750274,-500.0,0.00013698,2]
[339697220,1727870750298,-637.59006942,0.00013698,2]
[339697221,1727870750318,-500.0,0.00013698,2]
[339697222,1727870750338,-617.29,0.00013698,2]
[339697223,1727870750359,-500.0,0.00013698,2]
[339697224,1727870750380,-500.0,0.00013698,2]
[339697225,1727870750402,-516.66,0.00013698,2]
[339697226,1727870750422,-500.0,0.00013698,2]
[339697227,1727870750444,-500.0,0.00013698,2]
[339697228,1727870750466,-500.0,0.00013698,2]
[339697229,1727870750486,-500.0,0.00013698,2]
[339697230,1727870750506,-500.0,0.00013698,2]
[339697231,1727870750526,-500.0,0.00013698,2]
[339697232,1727870750547,-500.0,0.00013698,2]
[339697233,1727870750569,-500.0,0.00013698,2]
[339697234,1727870750591,-1465.47,0.00013698,2]
[339697235,1727870750612,-500.0,0.00013698,2]
[339697236,1727870750633,-604.26,0.00013698,2]
[339697237,1727870750653,-500.0,0.00013698,2]
[339697238,1727870750673,-502.00648702,0.00013698,2]
[339697239,1727870750694,-500.0,0.00013698,2]
[339697240,1727870750716,-500.0,0.00013698,2]
[339697241,1727870750737,-500.0,0.00013698,2]
[339697242,1727870750758,-500.0,0.00013698,2]
[339697243,1727870750779,-959.36,0.00013698,2]
[339697244,1727870750799,-500.0,0.00013698,2]
[339697245,1727870750819,-500.0,0.00013698,2]
[339697246,1727870750840,-500.0,0.00013698,2]
[339697247,1727870750861,-500.0,0.00013698,2]
[339697248,1727870750881,-1025.2,0.00013698,2]
[339697249,1727870750903,-500.0,0.00013698,2]
[339697250,1727870750924,-500.0,0.00013698,2]
[339697251,1727870750945,-500.0,0.00013698,2]
[339697252,1727870750967,-224.2039923,0.00013698,2]
[339697253,1727870750989,-500.0,0.00013698,2]
[339697254,1727870751012,-658.03,0.00013698,2]
[339697255,1727870751034,-500.0,0.00013698,2]
[339697256,1727870751056,-500.0,0.00013698,2]
[339697257,1727870751081,-500.0,0.00013698,2]
[339697258,1727870751104,-1691.49,0.00013698,2]
[339697259,1727870751124,-889.4,0.00013698,2]
[339697260,1727870751145,-500.0,0.00013698,2]
[339697261,1727870751166,-702.88,0.00013698,2]
[339697262,1727870751189,-503.34302956,0.00013698,2]
[339697263,1727870751214,-500.0,0.00013698,2]
[339697264,1727870751237,-573.14,0.00013698,2]
[339697265,1727870751261,-500.0,0.00013698,2]
[339697266,1727870751284,-500.0,0.00013698,2]
[339697267,1727870751308,-500.0,0.00013698,2]
[339697268,1727870751330,-500.0,0.00013698,2]
[339697269,1727870751353,-500.0,0.00013698,2]
[339697270,1727870751375,-754.54,0.00013698,2]
[339697271,1727870751399,-500.0,0.00013698,2]
[339697272,1727870751424,-604.08,0.00013698,2]
[339697273,1727870751445,-500.0,0.00013698,2]
[339697274,1727870751474,-500.0,0.00013698,2]
[339697275,1727870751497,-901.73,0.00013698,2]
[339697276,1727870751521,-943.71,0.00013698,2]
[339697277,1727870751545,-500.0,0.00013698,2]
[339697278,1727870751567,-500.0,0.00013698,2]
[339697279,1727870751588,-786.49,0.00013698,2]
[339697280,1727870751609,-500.0,0.00013698,2]
[339697281,1727870751630,-500.73760641,0.00013698,2]
[339697282,1727870751651,-500.0,0.00013698,2]
[339697283,1727870751671,-749.25,0.00013698,2]
[339697284,1727870751693,-500.0,0.00013698,2]
[339697285,1727870751717,-500.0,0.00013698,2]
[339697286,1727870751737,-500.0,0.00013698,2]
[339697287,1727870751759,-500.0,0.00013698,2]
[339697288,1727870751781,-500.0,0.00013698,2]
[339697289,1727870751996,-500.0,0.00013698,2]
[339697290,1727870752020,-500.0,0.00013698,2]
[339697291,1727870752040,-500.0,0.00013698,2]
[339697292,1727870752060,-500.0,0.00013698,2]
[339697293,1727870752082,-500.0,0.00013698,2]
[339697294,1727870752103,-500.0,0.00013698,2]
[339697295,1727870752124,-500.0,0.00013698,2]
[339697296,1727870752144,-1452.7,0.00013698,2]
[339697297,1727870752165,-500.0,0.00013698,2]
[339697298,1727870752186,-500.0,0.00013698,2]
[339697299,1727870752209,-500.0,0.00013698,2]
[339697300,1727870752233,-500.0,0.00013698,2]
[339697301,1727870752255,-500.0,0.00013698,2]
[339697302,1727870752277,-500.0,0.00013698,2]
[339697303,1727870752300,-500.0,0.00013698,2]
[339697304,1727870752321,-500.0,0.00013698,2]
[339697305,1727870752342,-500.0,0.00013698,2]
[339697306,1727870752363,-500.0,0.00013698,2]
[339697307,1727870752383,-500.0,0.00013698,2]
[339697308,1727870752405,-500.0,0.00013698,2]
[339697309,1727870752426,-500.0,0.00013698,2]
[339697310,1727870752447,-160.34280364,0.00013698,2]
[339697311,1727870752470,-500.0,0.00013698,2]
[339697312,1727870752490,-500.0,0.00013698,2]
[339697313,1727870752511,-692.11,0.00013698,2]
[339697314,1727870752531,-500.0,0.00013698,2]
[339697315,1727870752554,-500.0,0.00013698,2]
[339697316,1727870752576,-500.0,0.00013698,2]
[339697317,1727870752599,-500.0,0.00013698,2]
[339697318,1727870752621,-500.0,0.00013698,2]
[339697319,1727870752646,-500.0,0.00013698,2]
[339697320,1727870752668,-500.0,0.00013698,2]
[339697321,1727870752691,-500.0,0.00013698,2]
[339697322,1727870752716,-520.18,0.00013698,2]
[339697323,1727870752738,-546.24,0.00013698,2]
[339697324,1727870752761,-500.0,0.00013698,2]
[339697325,1727870752784,-500.0,0.00013698,2]
[339697326,1727870752806,-500.0,0.00013698,2]
[339697327,1727870752827,-500.0,0.00013698,2]
[339697328,1727870752848,-500.0,0.00013698,2]
[339697329,1727870752870,-500.0,0.00013698,2]
[339697330,1727870752893,-500.0,0.00013698,2]
[339697331,1727870752917,-511.49,0.00013698,2]
[339697332,1727870752939,-320.80334436,0.00013698,2]
[339697333,1727870752962,-500.0,0.00013698,2]
[339697334,1727870752983,-500.0,0.00013698,2]
[339697335,1727870753007,-692.27,0.00013698,2]
[339697336,1727870753031,-500.0,0.00013698,2]
[339697337,1727870753054,-856.19,0.00013698,2]
[339697338,1727870753077,-500.0,0.00013698,2]
[339697339,1727870753099,-1169.17,0.00013698,2]
[339697340,1727870753121,-650.23,0.00013698,2]
[339697341,1727870753145,-500.0,0.00013698,2]
[339697342,1727870753167,-500.0,0.00013698,2]
[339697343,1727870753187,-400.98736158,0.00013698,2]
[339697344,1727870753212,-735.48,0.00013698,2]
[339697345,1727870753235,-593.62,0.00013698,2]
[339697346,1727870753257,-500.0,0.00013698,2]
[339697347,1727870753279,-617.82,0.00013698,2]
[339697348,1727870753306,-1367.7,0.00013698,2]
[339697349,1727870753327,-500.0,0.00013698,2]
[339697350,1727870753350,-500.0,0.00013698,2]
[339697351,1727870753371,-500.0,0.00013698,2]
[339697352,1727870753395,-942.89,0.00013698,2]
[339697353,1727870753419,-1246.31,0.00013698,2]
[339697354,1727870753444,-500.0,0.00013698,2]
[339697355,1727870753468,-676.85,0.00013698,2]
[339697356,1727870753490,-500.0,0.00013698,2]
[339697357,1727870753514,-500.0,0.00013698,2]
[339697358,1727870753536,-500.0,0.00013698,2]
[339697359,1727870753560,-500.0,0.00013698,2]
[339697360,1727870753580,-576.76,0.00013698,2]
[339697361,1727870753601,-1088.2,0.00013698,2]
[339697362,1727870753622,-500.0,0.00013698,2]
[339697363,1727870753642,-500.0,0.00013698,2]
[339697364,1727870753663,-500.0,0.00013698,2]
[339697365,1727870753684,-500.0,0.00013698,2]
[339697366,1727870753707,-500.0,0.00013698,2]
[339697367,1727870753727,-515.34,0.00013698,2]
[339697368,1727870753749,-500.0,0.00013698,2]
[339697369,1727870753770,-748.93,0.00013698,2]
[339697370,1727870753792,-500.0,0.00013698,2]
[339697371,1727870753813,-2360.99,0.00013698,2]
[339697372,1727870753835,-500.0,0.00013698,2]
[339697373,1727870753857,-500.0,0.00013698,2]
[339697374,1727870753878,-358.8895099,0.00013698,2]
[339697375,1727870754925,-535.1404901,0.00013698,2]
[339697376,1727870754947,-500.0,0.00013698,2]
[339697377,1727870754971,-500.0,0.00013698,2]
[339697378,1727870754992,-792.89,0.00013698,2]
[339697379,1727870755014,-500.0,0.00013698,2]
[339697380,1727870755034,-500.0,0.00013698,2]
[339697381,1727870755055,-500.0,0.00013698,2]
[339697382,1727870755075,-500.0,0.00013698,2]
[339697383,1727870755095,-500.0,0.00013698,2]
[339697384,1727870755115,-500.0,0.00013698,2]
[339697385,1727870755136,-500.0,0.00013698,2]
[339697386,1727870755156,-555.77,0.00013698,2]
[339697387,1727870755178,-500.0,0.00013698,2]
[339697388,1727870755199,-500.0,0.00013698,2]
[339697389,1727870755227,-500.0,0.00013698,2]
[339697390,1727870755246,-501.26948652,0.00013698,2]
[339697391,1727870755268,-500.0,0.00013698,2]
[339697392,1727870755289,-500.0,0.00013698,2]
[339697393,1727870755309,-500.0,0.00013698,2]
[339697394,1727870755330,-574.87,0.00013698,2]
[339697395,1727870755350,-570.33061138,0.00013698,2]
[339697396,1727870755372,-500.0,0.00013698,2]
[339697397,1727870755392,-500.0,0.00013698,2]
[339697398,1727870755415,-575.55803732,0.00013698,2]
[339697399,1727870755437,-500.0,0.00013698,2]
[339697400,1727870755459,-568.24,0.00013698,2]
[339697401,1727870755482,-500.0,0.00013698,2]
[339697402,1727870755506,-500.0,0.00013698,2]
[339697403,1727870755530,-500.0,0.00013698,2]
[339697404,1727870755551,-500.0,0.00013698,2]
[339697405,1727870755574,-568.66,0.00013698,2]
[339697406,1727870755595,-500.0,0.00013698,2]
[339697407,1727870755616,-500.0,0.00013698,2]
[339697408,1727870755638,-500.0,0.00013698,2]
[339697409,1727870755658,-500.0,0.00013698,2]
[339697410,1727870755679,-500.0,0.00013698,2]
[339697411,1727870755700,-368.83954343,0.00013698,2]
[339697412,1727870755722,-996.55,0.00013698,2]
[339697413,1727870755743,-500.0,0.00013698,2]
[339697414,1727870755766,-500.0,0.00013698,2]
[339697415,1727870755796,-500.0,0.00013698,2]
[339697416,1727870755823,-500.0,0.00013698,2]
[339697417,1727870755845,-500.0,0.00013698,2]
[339697418,1727870755868,-500.0,0.00013698,2]
[339697419,1727870755891,-500.0,0.00013698,2]
[339697420,1727870755914,-400.80380286,0.00013698,2]
[339697421,1727870755937,-500.0,0.00013698,2]
[339697422,1727870755962,-1065.61,0.00013698,2]
[339697423,1727870755987,-500.0,0.00013698,2]
[339697424,1727870756012,-500.0,0.00013698,2]
[339697425,1727870756037,-500.0,0.00013698,2]
[339697426,1727870756059,-921.03,0.00013698,2]
[339697427,1727870756080,-500.0,0.00013698,2]
[339697428,1727870756102,-526.28,0.00013698,2]
[339697429,1727870756124,-500.0,0.00013698,2]
[339697430,1727870756148,-608.67,0.00013698,2]
[339697431,1727870756170,-500.0,0.00013698,2]
[339697432,1727870756191,-500.0,0.00013698,2]
[339697433,1727870756221,-936.86,0.00013698,2]
[339697434,1727870756244,-500.0,0.00013698,2]